[Event "Titled Tuesday Blitz May 9 Early 2023"]
[White "Zampronha, Wladimir Camilo"]
[Black "Turzo, Attila"]
[WhiteFideId "2103087"]
[BlackFideId "704954"]
[WhiteElo "2176"]
[BlackElo "2482"]
[Result "1/2-1/2"]
[Round "04"]
[TimeControl "180+2"]
[Date "2023.05.09"]
[WhiteClock "0:00:13"]
[BlackClock "0:00:10"]

1. e4 {[%clk 0:03:00]}  c5 {[%clk 0:02:55]} 2. Nf3 {[%clk 0:03:00]}  Nc6 {[%clk 0:02:55]} 3. d4 {[%clk 0:03:01]}  cxd4 {[%clk 0:02:55]} 4. Nxd4 {[%clk 0:03:01]}  g6 {[%clk 0:02:56]} 5. Nc3 {[%clk 0:03:01]}  Bg7 {[%clk 0:02:56]} 6. Be3 {[%clk 0:03:01]}  Nf6 {[%clk 0:02:56]} 7. Bc4 {[%clk 0:03:01]}  Qa5 {[%clk 0:02:55]} 8. O-O {[%clk 0:02:38]}  O-O {[%clk 0:02:54]} 9. Bb3 {[%clk 0:02:33]}  d6 {[%clk 0:02:53]} 10. h3 {[%clk 0:02:32]}  Bd7 {[%clk 0:02:50]} 11. f4 {[%clk 0:02:31]}  Nxd4 {[%clk 0:02:35]} 12. Bxd4 {[%clk 0:02:30]}  e5 {[%clk 0:02:36]} 13. Be3 {[%clk 0:02:24]}  Bc6 {[%clk 0:02:30]} 14. Qd3 {[%clk 0:02:23]}  Rad8 {[%clk 0:02:20]} 15. f5 {[%clk 0:02:18]}  Kh8 {[%clk 0:02:00]} 16. Bg5 {[%clk 0:02:09]}  Qb4 {[%clk 0:01:51]} 17. a3 {[%clk 0:01:58]}  Qd4+ {[%clk 0:01:48]} 18. Qxd4 {[%clk 0:01:58]}  exd4 {[%clk 0:01:49]} 19. Ne2 {[%clk 0:01:59]}  Bxe4 {[%clk 0:01:39]} 20. fxg6 {[%clk 0:01:49]}  fxg6 {[%clk 0:01:40]} 21. Nxd4 {[%clk 0:01:48]}  h6 {[%clk 0:00:57]} 22. Bh4 {[%clk 0:01:41]}  g5 {[%clk 0:00:54]} 23. Bf2 {[%clk 0:01:42]}  Nh5 {[%clk 0:00:31]} 24. Ne6 {[%clk 0:01:33]}  Bxb2 {[%clk 0:00:31]} 25. Rae1 {[%clk 0:01:27]}  Bc6 {[%clk 0:00:21]} 26. Nxd8 {[%clk 0:01:21]}  Rxd8 {[%clk 0:00:21]} 27. a4 {[%clk 0:01:15]}  Nf4 {[%clk 0:00:20]} 28. Kh2 {[%clk 0:01:00]}  Nxg2 {[%clk 0:00:17]} 29. Re7 {[%clk 0:00:55]}  Be5+ {[%clk 0:00:17]} 30. Bg3 {[%clk 0:00:52]}  Nf4 {[%clk 0:00:18]} 31. Rd1 {[%clk 0:00:46]}  Rf8 {[%clk 0:00:16]} 32. Rf7 {[%clk 0:00:39]}  Rxf7 {[%clk 0:00:16]} 33. Bxf7 {[%clk 0:00:40]}  Kg7 {[%clk 0:00:16]} 34. Bb3 {[%clk 0:00:37]}  Kf6 {[%clk 0:00:16]} 35. Rf1 {[%clk 0:00:33]}  Kf5 {[%clk 0:00:15]} 36. h4 {[%clk 0:00:29]}  a6 {[%clk 0:00:14]} 37. hxg5 {[%clk 0:00:29]}  hxg5 {[%clk 0:00:15]} 38. Re1 {[%clk 0:00:25]}  Be4 {[%clk 0:00:14]} 39. Rd1 {[%clk 0:00:23]}  d5 {[%clk 0:00:14]} 40. Re1 {[%clk 0:00:19]}  Bc3 {[%clk 0:00:14]} 41. Rd1 {[%clk 0:00:18]}  Ke5 {[%clk 0:00:12]} 42. Rf1 {[%clk 0:00:15]}  b5 {[%clk 0:00:12]} 43. axb5 {[%clk 0:00:15]}  axb5 {[%clk 0:00:13]} 44. Rd1 {[%clk 0:00:15]}  b4 {[%clk 0:00:13]} 45. Rf1 {[%clk 0:00:13]}  Bd4 {[%clk 0:00:10]} 46. Rd1 {[%clk 0:00:13]}  Bc3 {[%clk 0:00:10]} 47. Rf1 {[%clk 0:00:14]}  Kf5 {[%clk 0:00:10]} 48. Rd1 {[%clk 0:00:13]}  Ke5 {[%clk 0:00:10]} 1/2-1/2


[Site "https://www.chess.com"]

[Event "Titled Tuesday Blitz May 9 Early 2023"]
[White "ElenGajger"]
[Black "Zaichenko, Daria"]
[BlackFideId "4197453"]
[WhiteElo "2479"]
[BlackElo "2039"]
[Result "1-0"]
[Round "04"]
[TimeControl "180+2"]
[Date "2023.05.09"]
[WhiteClock "0:02:16"]
[BlackClock "0:00:44"]

1. e4 {[%clk 0:03:00]}  c5 {[%clk 0:02:53]} 2. Nc3 {[%clk 0:02:59]}  Nc6 {[%clk 0:02:52]} 3. Bb5 {[%clk 0:02:58]}  g6 {[%clk 0:02:50]} 4. Bxc6 {[%clk 0:02:57]}  bxc6 {[%clk 0:02:50]} 5. f4 {[%clk 0:02:58]}  Bg7 {[%clk 0:02:49]} 6. Nf3 {[%clk 0:02:59]}  e6 {[%clk 0:02:46]} 7. O-O {[%clk 0:02:59]}  d5 {[%clk 0:02:46]} 8. e5 {[%clk 0:02:59]}  Ne7 {[%clk 0:02:44]} 9. d3 {[%clk 0:02:59]}  Ba6 {[%clk 0:02:39]} 10. b3 {[%clk 0:02:53]}  c4 {[%clk 0:02:36]} 11. bxc4 {[%clk 0:02:52]}  dxc4 {[%clk 0:02:34]} 12. d4 {[%clk 0:02:52]}  Nd5 {[%clk 0:02:33]} 13. Ne4 {[%clk 0:02:49]}  O-O {[%clk 0:02:30]} 14. c3 {[%clk 0:02:48]}  f6 {[%clk 0:02:19]} 15. exf6 {[%clk 0:02:40]}  Nxf6 {[%clk 0:02:15]} 16. Nc5 {[%clk 0:02:39]}  Bc8 {[%clk 0:02:12]} 17. Ne5 {[%clk 0:02:39]}  Nd5 {[%clk 0:02:06]} 18. Nxc6 {[%clk 0:02:36]}  Qc7 {[%clk 0:02:02]} 19. Ne5 {[%clk 0:02:32]}  Nxc3 {[%clk 0:01:59]} 20. Qc2 {[%clk 0:02:32]}  Nd5 {[%clk 0:01:56]} 21. Qxc4 {[%clk 0:02:31]}  Bxe5 {[%clk 0:01:53]} 22. fxe5 {[%clk 0:02:31]}  Rxf1+ {[%clk 0:01:51]} 23. Qxf1 {[%clk 0:02:30]}  Bd7 {[%clk 0:01:47]} 24. Bh6 {[%clk 0:02:29]}  Rb8 {[%clk 0:01:32]} 25. Qf2 {[%clk 0:02:22]}  Qd8 {[%clk 0:01:10]} 26. Rf1 {[%clk 0:02:16]}  Bc6 {[%clk 0:00:46]} 27. Qf7+ {[%clk 0:02:15]}  Kh8 {[%clk 0:00:44]} 28. Bg7# {[%clk 0:02:16]} 1-0


[Site "https://www.chess.com"]

[Event "Titled Tuesday Blitz May 9 Early 2023"]
[White "Barbot, Pierre"]
[Black "Sowul, Bartosz"]
[WhiteFideId "663727"]
[BlackFideId "1137590"]
[WhiteElo "2431"]
[BlackElo "2188"]
[Result "0-1"]
[Round "04"]
[TimeControl "180+2"]
[Date "2023.05.09"]
[WhiteClock "0:00:05"]
[BlackClock "0:01:42"]

1. d4 {[%clk 0:02:55]}  Nf6 {[%clk 0:03:00]} 2. Nc3 {[%clk 0:02:55]}  d5 {[%clk 0:02:59]} 3. Bf4 {[%clk 0:02:55]}  g6 {[%clk 0:02:56]} 4. e3 {[%clk 0:02:40]}  Bg7 {[%clk 0:02:56]} 5. h4 {[%clk 0:02:40]}  c6 {[%clk 0:02:55]} 6. Be2 {[%clk 0:02:26]}  h5 {[%clk 0:02:55]} 7. Nf3 {[%clk 0:02:25]}  Nbd7 {[%clk 0:02:54]} 8. Ng5 {[%clk 0:02:20]}  b5 {[%clk 0:02:49]} 9. a3 {[%clk 0:01:47]}  a5 {[%clk 0:02:46]} 10. O-O {[%clk 0:01:46]}  O-O {[%clk 0:02:44]} 11. Bd3 {[%clk 0:01:30]}  Nb6 {[%clk 0:02:41]} 12. Ne2 {[%clk 0:01:10]}  Nc4 {[%clk 0:02:29]} 13. Qc1 {[%clk 0:01:05]}  Ng4 {[%clk 0:02:22]} 14. c3 {[%clk 0:00:29]}  e5 {[%clk 0:02:03]} 15. dxe5 {[%clk 0:00:26]}  Ncxe5 {[%clk 0:02:02]} 16. Bc2 {[%clk 0:00:22]}  Nh6 {[%clk 0:01:53]} 17. Nd4 {[%clk 0:00:19]}  Bd7 {[%clk 0:01:51]} 18. Qb1 {[%clk 0:00:18]}  Qe7 {[%clk 0:01:42]} 19. a4 {[%clk 0:00:10]}  b4 {[%clk 0:01:40]} 20. cxb4 {[%clk 0:00:10]}  axb4 {[%clk 0:01:41]} 21. b3 {[%clk 0:00:10]}  c5 {[%clk 0:01:41]} 22. Nb5 {[%clk 0:00:09]}  Bxb5 {[%clk 0:01:41]} 23. axb5 {[%clk 0:00:10]}  Rxa1 {[%clk 0:01:41]} 24. Qxa1 {[%clk 0:00:05]}  Nf3+ {[%clk 0:01:42]} 0-1


[Site "https://www.chess.com"]

[Event "Titled Tuesday Blitz May 9 Early 2023"]
[White "Jiganchine, Roman"]
[Black "WindWhistler11"]
[WhiteFideId "2603667"]
[WhiteElo "2277"]
[BlackElo "2470"]
[Result "0-1"]
[Round "04"]
[TimeControl "180+2"]
[Date "2023.05.09"]
[WhiteClock "0:00:00"]
[BlackClock "0:00:06"]

1. e4 {[%clk 0:03:00]}  e6 {[%clk 0:03:00]} 2. d4 {[%clk 0:02:59]}  d5 {[%clk 0:03:01]} 3. Nd2 {[%clk 0:02:59]}  Nc6 {[%clk 0:03:00]} 4. Ngf3 {[%clk 0:02:58]}  Nf6 {[%clk 0:03:00]} 5. e5 {[%clk 0:02:57]}  Nd7 {[%clk 0:03:01]} 6. Bb5 {[%clk 0:02:56]}  f6 {[%clk 0:02:59]} 7. exf6 {[%clk 0:02:47]}  Qxf6 {[%clk 0:03:00]} 8. Bxc6 {[%clk 0:02:44]}  bxc6 {[%clk 0:03:00]} 9. O-O {[%clk 0:02:44]}  Bd6 {[%clk 0:02:55]} 10. Nb3 {[%clk 0:02:41]}  a5 {[%clk 0:02:49]} 11. a4 {[%clk 0:02:37]}  O-O {[%clk 0:02:39]} 12. Bg5 {[%clk 0:02:36]}  Qg6 {[%clk 0:02:33]} 13. Bh4 {[%clk 0:02:35]}  c5 {[%clk 0:02:27]} 14. Bg3 {[%clk 0:02:25]}  c4 {[%clk 0:02:23]} 15. Nc5 {[%clk 0:02:24]}  Nxc5 {[%clk 0:02:08]} 16. dxc5 {[%clk 0:02:25]}  Bxc5 {[%clk 0:02:04]} 17. Bxc7 {[%clk 0:02:08]}  Ra7 {[%clk 0:01:31]} 18. Be5 {[%clk 0:02:02]}  Bd7 {[%clk 0:01:25]} 19. b3 {[%clk 0:01:57]}  cxb3 {[%clk 0:01:22]} 20. cxb3 {[%clk 0:01:57]}  Be8 {[%clk 0:01:21]} 21. Rc1 {[%clk 0:01:57]}  Bb6 {[%clk 0:01:17]} 22. Rc8 {[%clk 0:01:54]}  Raf7 {[%clk 0:01:17]} 23. Bd6 {[%clk 0:01:28]}  Rxf3 {[%clk 0:01:07]} 24. Rxe8 {[%clk 0:01:22]}  Qxe8 {[%clk 0:00:56]} 25. gxf3 {[%clk 0:01:21]}  Rf6 {[%clk 0:00:51]} 26. Bg3 {[%clk 0:01:20]}  Qf7 {[%clk 0:00:47]} 27. Re1 {[%clk 0:01:20]}  Rxf3 {[%clk 0:00:45]} 28. Qe2 {[%clk 0:00:58]}  Rf6 {[%clk 0:00:38]} 29. Qc2 {[%clk 0:00:43]}  h5 {[%clk 0:00:35]} 30. Re2 {[%clk 0:00:33]}  Rg6 {[%clk 0:00:26]} 31. Qc6 {[%clk 0:00:27]}  Bd4 {[%clk 0:00:22]} 32. Qa8+ {[%clk 0:00:17]}  Kh7 {[%clk 0:00:21]} 33. Rc2 {[%clk 0:00:13]}  Qf3 {[%clk 0:00:07]} 34. Qc8 {[%clk 0:00:00]}  h4 {[%clk 0:00:06]} 0-1


[Site "https://www.chess.com"]

[Event "Titled Tuesday Blitz May 9 Early 2023"]
[White "Gurevich, Dmitry"]
[Black "babbilator"]
[WhiteFideId "2000407"]
[WhiteElo "2506"]
[BlackElo "2268"]
[Result "0-1"]
[Round "04"]
[TimeControl "180+2"]
[Date "2023.05.09"]
[WhiteClock "0:00:00"]
[BlackClock "0:00:06"]

1. Nf3 {[%clk 0:03:00]}  Nf6 {[%clk 0:02:58]} 2. c4 {[%clk 0:02:54]}  c5 {[%clk 0:02:56]} 3. Nc3 {[%clk 0:02:51]}  e6 {[%clk 0:02:53]} 4. g3 {[%clk 0:02:47]}  b6 {[%clk 0:02:49]} 5. Bg2 {[%clk 0:02:47]}  Bb7 {[%clk 0:02:48]} 6. O-O {[%clk 0:02:44]}  Be7 {[%clk 0:02:46]} 7. d4 {[%clk 0:02:44]}  cxd4 {[%clk 0:02:45]} 8. Qxd4 {[%clk 0:02:44]}  d6 {[%clk 0:02:14]} 9. b3 {[%clk 0:02:43]}  O-O {[%clk 0:02:10]} 10. Ba3 {[%clk 0:02:27]}  Na6 {[%clk 0:01:56]} 11. Nb5 {[%clk 0:02:17]}  Nc5 {[%clk 0:01:49]} 12. Rad1 {[%clk 0:02:15]}  Nfe4 {[%clk 0:01:38]} 13. Nd2 {[%clk 0:02:03]}  a6 {[%clk 0:01:33]} 14. Nxe4 {[%clk 0:01:44]}  axb5 {[%clk 0:01:27]} 15. Bb2 {[%clk 0:01:43]}  e5 {[%clk 0:01:16]} 16. Qe3 {[%clk 0:01:37]}  Qb8 {[%clk 0:01:11]} 17. Nc3 {[%clk 0:01:25]}  Bxg2 {[%clk 0:01:07]} 18. Kxg2 {[%clk 0:01:25]}  bxc4 {[%clk 0:01:06]} 19. bxc4 {[%clk 0:01:19]}  Na4 {[%clk 0:01:00]} 20. Nxa4 {[%clk 0:01:08]}  Rxa4 {[%clk 0:00:58]} 21. Qb3 {[%clk 0:01:08]}  Qa8+ {[%clk 0:00:50]} 22. Rd5 {[%clk 0:01:01]}  Rc8 {[%clk 0:00:41]} 23. e4 {[%clk 0:00:34]}  Raxc4 {[%clk 0:00:40]} 24. f3 {[%clk 0:00:33]}  Rc2+ {[%clk 0:00:31]} 25. Rf2 {[%clk 0:00:32]}  Qc6 {[%clk 0:00:27]} 26. Rxc2 {[%clk 0:00:26]}  Qxc2+ {[%clk 0:00:26]} 27. Kh3 {[%clk 0:00:26]}  Qxb3 {[%clk 0:00:17]} 28. axb3 {[%clk 0:00:25]}  Rc5 {[%clk 0:00:16]} 29. Rd3 {[%clk 0:00:19]}  Rb5 {[%clk 0:00:14]} 30. Ba3 {[%clk 0:00:17]}  Kf8 {[%clk 0:00:14]} 31. f4 {[%clk 0:00:15]}  exf4 {[%clk 0:00:14]} 32. gxf4 {[%clk 0:00:14]}  Ke8 {[%clk 0:00:14]} 33. Kg4 {[%clk 0:00:15]}  g6 {[%clk 0:00:15]} 34. Kf3 {[%clk 0:00:13]}  Bf8 {[%clk 0:00:13]} 35. h3 {[%clk 0:00:13]}  f6 {[%clk 0:00:13]} 36. Ke3 {[%clk 0:00:12]}  Kf7 {[%clk 0:00:13]} 37. Kd2 {[%clk 0:00:12]}  Ke6 {[%clk 0:00:14]} 38. Kc2 {[%clk 0:00:12]}  Ra5 {[%clk 0:00:14]} 39. Kb2 {[%clk 0:00:09]}  Ra7 {[%clk 0:00:13]} 40. h4 {[%clk 0:00:06]}  Rc7 {[%clk 0:00:11]} 41. h5 {[%clk 0:00:05]}  gxh5 {[%clk 0:00:08]} 42. Rh3 {[%clk 0:00:05]}  Rg7 {[%clk 0:00:08]} 43. Rxh5 {[%clk 0:00:04]}  Be7 {[%clk 0:00:08]} 44. Bb4 {[%clk 0:00:03]}  Kd7 {[%clk 0:00:07]} 45. Ka3 {[%clk 0:00:03]}  Rg4 {[%clk 0:00:06]} 46. Rxh7 {[%clk 0:00:02]}  Rxf4 {[%clk 0:00:07]} 47. Bc3 {[%clk 0:00:00]}  Rxe4 {[%clk 0:00:06]} 0-1


[Site "https://www.chess.com"]

[Event "Titled Tuesday Blitz May 9 Early 2023"]
[White "Mackster23"]
[Black "Kiseleva, Arina"]
[BlackFideId "4164989"]
[WhiteElo "2437"]
[BlackElo "1708"]
[Result "1-0"]
[Round "04"]
[TimeControl "180+2"]
[Date "2023.05.09"]
[WhiteClock "0:00:07"]
[BlackClock "0:00:00"]

1. e4 {[%clk 0:03:00]}  c6 {[%clk 0:02:59]} 2. d4 {[%clk 0:03:00]}  d5 {[%clk 0:03:00]} 3. Nd2 {[%clk 0:02:57]}  dxe4 {[%clk 0:03:00]} 4. Nxe4 {[%clk 0:02:58]}  Nf6 {[%clk 0:03:00]} 5. Nxf6+ {[%clk 0:02:58]}  exf6 {[%clk 0:03:01]} 6. c3 {[%clk 0:02:59]}  Bd6 {[%clk 0:03:01]} 7. Bd3 {[%clk 0:02:59]}  Na6 {[%clk 0:03:01]} 8. Qc2 {[%clk 0:02:47]}  h5 {[%clk 0:02:58]} 9. Nf3 {[%clk 0:02:30]}  Bg4 {[%clk 0:02:52]} 10. Nh4 {[%clk 0:02:29]}  Qe7+ {[%clk 0:02:40]} 11. Be3 {[%clk 0:02:09]}  Nc7 {[%clk 0:02:25]} 12. h3 {[%clk 0:02:05]}  Be6 {[%clk 0:02:23]} 13. O-O-O {[%clk 0:01:39]}  Nd5 {[%clk 0:02:00]} 14. Kb1 {[%clk 0:01:25]}  Nxe3 {[%clk 0:01:55]} 15. fxe3 {[%clk 0:01:26]}  O-O-O {[%clk 0:01:19]} 16. Nf5 {[%clk 0:01:22]}  Bxf5 {[%clk 0:01:11]} 17. Bxf5+ {[%clk 0:01:23]}  Kb8 {[%clk 0:01:10]} 18. Qf2 {[%clk 0:01:04]}  g6 {[%clk 0:01:07]} 19. Bc2 {[%clk 0:01:03]}  f5 {[%clk 0:01:04]} 20. Qf3 {[%clk 0:00:45]}  Rhe8 {[%clk 0:00:55]} 21. Rde1 {[%clk 0:00:42]}  Qg5 {[%clk 0:00:49]} 22. Re2 {[%clk 0:00:25]}  h4 {[%clk 0:00:42]} 23. Rf1 {[%clk 0:00:24]}  Bg3 {[%clk 0:00:40]} 24. e4 {[%clk 0:00:24]}  fxe4 {[%clk 0:00:39]} 25. Rxe4 {[%clk 0:00:23]}  f5 {[%clk 0:00:38]} 26. Re2 {[%clk 0:00:20]}  Rxe2 {[%clk 0:00:30]} 27. Qxe2 {[%clk 0:00:21]}  Qf6 {[%clk 0:00:29]} 28. Rf3 {[%clk 0:00:19]}  f4 {[%clk 0:00:14]} 29. Qd3 {[%clk 0:00:18]}  Re8 {[%clk 0:00:12]} 30. a4 {[%clk 0:00:16]}  g5 {[%clk 0:00:10]} 31. Rf1 {[%clk 0:00:14]}  Re3 {[%clk 0:00:09]} 32. Qf5 {[%clk 0:00:14]}  Qxf5 {[%clk 0:00:09]} 33. Bxf5 {[%clk 0:00:15]}  Re2 {[%clk 0:00:09]} 34. Rg1 {[%clk 0:00:13]}  Bh2 {[%clk 0:00:10]} 35. Rh1 {[%clk 0:00:12]}  Rxg2 {[%clk 0:00:09]} 36. Be4 {[%clk 0:00:13]}  Re2 {[%clk 0:00:09]} 37. Bd3 {[%clk 0:00:12]}  Rd2 {[%clk 0:00:09]} 38. Kc1 {[%clk 0:00:12]}  Rxd3 {[%clk 0:00:09]} 39. Rxh2 {[%clk 0:00:13]}  Rg3 {[%clk 0:00:09]} 40. Kd2 {[%clk 0:00:12]}  f3 {[%clk 0:00:07]} 41. Ke3 {[%clk 0:00:13]}  Kc7 {[%clk 0:00:04]} 42. Kf2 {[%clk 0:00:10]}  Kd6 {[%clk 0:00:04]} 43. c4 {[%clk 0:00:10]}  b6 {[%clk 0:00:04]} 44. b4 {[%clk 0:00:10]}  a5 {[%clk 0:00:04]} 45. b5 {[%clk 0:00:09]}  c5 {[%clk 0:00:04]} 46. d5 {[%clk 0:00:09]}  Ke5 {[%clk 0:00:04]} 47. Kf1 {[%clk 0:00:08]}  Kd4 {[%clk 0:00:03]} 48. d6 {[%clk 0:00:08]}  f2 {[%clk 0:00:01]} 49. d7 {[%clk 0:00:07]}  Kxc4 {[%clk 0:00:02]} 50. d8=Q {[%clk 0:00:06]}  Rg1+ {[%clk 0:00:02]} 51. Kxf2 {[%clk 0:00:06]}  Rc1 {[%clk 0:00:00]} 52. Qg8+ {[%clk 0:00:07]} 1-0


[Site "https://www.chess.com"]

[Event "Titled Tuesday Blitz May 9 Early 2023"]
[White "Floresvillar Gonzalez, Luis Migu"]
[Black "Urbina Perez, Juan Antonio"]
[WhiteFideId "5100542"]
[BlackFideId "2217368"]
[WhiteElo "2040"]
[BlackElo "2197"]
[Result "0-1"]
[Round "04"]
[TimeControl "180+2"]
[Date "2023.05.09"]
[WhiteClock "0:00:00"]
[BlackClock "0:01:18"]

1. d4 {[%clk 0:02:54]}  d5 {[%clk 0:02:59]} 2. c3 {[%clk 0:02:53]}  c5 {[%clk 0:02:58]} 3. Nf3 {[%clk 0:02:51]}  cxd4 {[%clk 0:02:58]} 4. cxd4 {[%clk 0:02:51]}  Nc6 {[%clk 0:02:59]} 5. Nc3 {[%clk 0:02:50]}  Nf6 {[%clk 0:02:57]} 6. Bf4 {[%clk 0:02:27]}  a6 {[%clk 0:02:57]} 7. e3 {[%clk 0:02:20]}  Bg4 {[%clk 0:02:57]} 8. Be2 {[%clk 0:02:17]}  e6 {[%clk 0:02:55]} 9. O-O {[%clk 0:02:17]}  Bd6 {[%clk 0:02:55]} 10. Bxd6 {[%clk 0:02:07]}  Qxd6 {[%clk 0:02:56]} 11. h3 {[%clk 0:02:07]}  Bf5 {[%clk 0:02:54]} 12. Rc1 {[%clk 0:02:05]}  O-O {[%clk 0:02:54]} 13. Nh4 {[%clk 0:01:46]}  Be4 {[%clk 0:02:48]} 14. f3 {[%clk 0:01:44]}  Bg6 {[%clk 0:02:47]} 15. f4 {[%clk 0:01:35]}  Be4 {[%clk 0:02:38]} 16. Nf3 {[%clk 0:01:31]}  Rac8 {[%clk 0:02:36]} 17. Ne5 {[%clk 0:01:29]}  Rc7 {[%clk 0:02:25]} 18. Bd3 {[%clk 0:01:29]}  Bxd3 {[%clk 0:02:24]} 19. Qxd3 {[%clk 0:01:28]}  Rfc8 {[%clk 0:02:23]} 20. Rce1 {[%clk 0:01:11]}  Nd7 {[%clk 0:02:22]} 21. Rf3 {[%clk 0:00:53]}  f6 {[%clk 0:02:19]} 22. Ng4 {[%clk 0:00:51]}  b5 {[%clk 0:02:11]} 23. Rg3 {[%clk 0:00:40]}  Kh8 {[%clk 0:02:04]} 24. Rf1 {[%clk 0:00:38]}  b4 {[%clk 0:02:04]} 25. Ne2 {[%clk 0:00:37]}  Ne7 {[%clk 0:02:04]} 26. Rgf3 {[%clk 0:00:28]}  Qc6 {[%clk 0:01:56]} 27. Ng3 {[%clk 0:00:25]}  f5 {[%clk 0:01:53]} 28. Ne5 {[%clk 0:00:24]}  Nxe5 {[%clk 0:01:54]} 29. fxe5 {[%clk 0:00:22]}  Qc2 {[%clk 0:01:54]} 30. Qxc2 {[%clk 0:00:20]}  Rxc2 {[%clk 0:01:55]} 31. R3f2 {[%clk 0:00:17]}  g6 {[%clk 0:01:52]} 32. b3 {[%clk 0:00:15]}  Kg7 {[%clk 0:01:50]} 33. Rxc2 {[%clk 0:00:13]}  Rxc2 {[%clk 0:01:51]} 34. Rf2 {[%clk 0:00:13]}  Rc1+ {[%clk 0:01:51]} 35. Kh2 {[%clk 0:00:13]}  Rc3 {[%clk 0:01:48]} 36. Kg1 {[%clk 0:00:09]}  Rxe3 {[%clk 0:01:42]} 37. Rc2 {[%clk 0:00:08]}  Rc3 {[%clk 0:01:42]} 38. Rd2 {[%clk 0:00:07]}  h6 {[%clk 0:01:31]} 39. Ne2 {[%clk 0:00:07]}  Rc7 {[%clk 0:01:29]} 40. Nf4 {[%clk 0:00:08]}  Kf7 {[%clk 0:01:28]} 41. g4 {[%clk 0:00:07]}  g5 {[%clk 0:01:28]} 42. Nd3 {[%clk 0:00:02]}  f4 {[%clk 0:01:27]} 43. h4 {[%clk 0:00:02]}  a5 {[%clk 0:01:25]} 44. hxg5 {[%clk 0:00:02]}  hxg5 {[%clk 0:01:26]} 45. Rh2 {[%clk 0:00:00]}  Kg6 {[%clk 0:01:18]} 0-1


[Site "https://www.chess.com"]

[Event "Titled Tuesday Blitz May 9 Early 2023"]
[White "Pinto, Daniel"]
[Black "Tarnowska, Aleksandra"]
[WhiteFideId "3303144"]
[BlackFideId "1180967"]
[WhiteElo "2145"]
[BlackElo "1776"]
[Result "1-0"]
[Round "04"]
[TimeControl "180+2"]
[Date "2023.05.09"]
[WhiteClock "0:00:47"]
[BlackClock "0:00:02"]

1. Nf3 {[%clk 0:02:59]}  d5 {[%clk 0:02:59]} 2. g3 {[%clk 0:02:57]}  Nf6 {[%clk 0:02:59]} 3. Bg2 {[%clk 0:02:58]}  c5 {[%clk 0:02:52]} 4. O-O {[%clk 0:02:58]}  Nc6 {[%clk 0:02:52]} 5. c4 {[%clk 0:02:57]}  e5 {[%clk 0:02:45]} 6. cxd5 {[%clk 0:02:55]}  Nxd5 {[%clk 0:02:46]} 7. Nc3 {[%clk 0:02:48]}  Be6 {[%clk 0:02:19]} 8. d3 {[%clk 0:02:48]}  Be7 {[%clk 0:02:14]} 9. Bd2 {[%clk 0:02:47]}  O-O {[%clk 0:02:14]} 10. Rc1 {[%clk 0:02:43]}  f5 {[%clk 0:02:08]} 11. a3 {[%clk 0:02:11]}  f4 {[%clk 0:01:52]} 12. Ne4 {[%clk 0:01:56]}  b6 {[%clk 0:01:36]} 13. b4 {[%clk 0:01:56]}  Rc8 {[%clk 0:00:53]} 14. bxc5 {[%clk 0:01:52]}  bxc5 {[%clk 0:00:32]} 15. Nxc5 {[%clk 0:01:53]}  Bxc5 {[%clk 0:00:19]} 16. Rxc5 {[%clk 0:01:54]}  g5 {[%clk 0:00:11]} 17. Qa1 {[%clk 0:01:35]}  Qd6 {[%clk 0:00:09]} 18. Nxg5 {[%clk 0:01:11]}  fxg3 {[%clk 0:00:09]} 19. hxg3 {[%clk 0:01:08]}  Nf6 {[%clk 0:00:03]} 20. Nxe6 {[%clk 0:01:05]}  Qxe6 {[%clk 0:00:03]} 21. Rxc6 {[%clk 0:00:56]}  Rxc6 {[%clk 0:00:04]} 22. Bxc6 {[%clk 0:00:56]}  Qxc6 {[%clk 0:00:05]} 23. Qxe5 {[%clk 0:00:56]}  Re8 {[%clk 0:00:04]} 24. Qg5+ {[%clk 0:00:56]}  Kh8 {[%clk 0:00:04]} 25. Rc1 {[%clk 0:00:52]}  Qd7 {[%clk 0:00:02]} 26. Qxf6+ {[%clk 0:00:47]}  Qg7 {[%clk 0:00:02]} 1-0


[Site "https://www.chess.com"]

[Event "Titled Tuesday Blitz May 9 Early 2023"]
[White "Liu, Casper"]
[Black "Botez, Alexandra"]
[WhiteFideId "1454153"]
[BlackFideId "2603365"]
[WhiteElo "2221"]
[BlackElo "2040"]
[Result "1-0"]
[Round "04"]
[TimeControl "180+2"]
[Date "2023.05.09"]
[WhiteClock "0:02:14"]
[BlackClock "0:01:03"]

1. b3 {[%clk 0:03:00]}  d5 {[%clk 0:02:58]} 2. Bb2 {[%clk 0:03:00]}  c5 {[%clk 0:02:58]} 3. e3 {[%clk 0:03:00]}  Nc6 {[%clk 0:02:57]} 4. g3 {[%clk 0:03:00]}  Nf6 {[%clk 0:02:56]} 5. Bg2 {[%clk 0:03:01]}  e5 {[%clk 0:02:52]} 6. d4 {[%clk 0:03:01]}  cxd4 {[%clk 0:02:48]} 7. exd4 {[%clk 0:03:02]}  e4 {[%clk 0:02:48]} 8. Ne2 {[%clk 0:03:02]}  Bd6 {[%clk 0:02:48]} 9. O-O {[%clk 0:03:02]}  O-O {[%clk 0:02:48]} 10. c4 {[%clk 0:03:03]}  Re8 {[%clk 0:02:38]} 11. Nbc3 {[%clk 0:03:01]}  Nb4 {[%clk 0:02:34]} 12. cxd5 {[%clk 0:02:56]}  Nbxd5 {[%clk 0:02:31]} 13. Rc1 {[%clk 0:02:55]}  Bf5 {[%clk 0:02:26]} 14. Re1 {[%clk 0:02:55]}  a6 {[%clk 0:02:22]} 15. Qd2 {[%clk 0:02:52]}  Rc8 {[%clk 0:01:52]} 16. a3 {[%clk 0:02:52]}  Qd7 {[%clk 0:01:52]} 17. Nd1 {[%clk 0:02:45]}  Rxc1 {[%clk 0:01:50]} 18. Qxc1 {[%clk 0:02:46]}  e3 {[%clk 0:01:46]} 19. Nxe3 {[%clk 0:02:44]}  Bg6 {[%clk 0:01:39]} 20. Nxd5 {[%clk 0:02:42]}  Nxd5 {[%clk 0:01:34]} 21. Bxd5 {[%clk 0:02:43]}  Bxa3 {[%clk 0:01:26]} 22. Bxa3 {[%clk 0:02:26]}  Qxd5 {[%clk 0:01:25]} 23. Nf4 {[%clk 0:02:27]}  Rxe1+ {[%clk 0:01:21]} 24. Qxe1 {[%clk 0:02:28]}  Qd7 {[%clk 0:01:21]} 25. d5 {[%clk 0:02:21]}  Bf5 {[%clk 0:01:15]} 26. d6 {[%clk 0:02:16]}  g5 {[%clk 0:01:11]} 27. Nd5 {[%clk 0:02:15]}  Qc6 {[%clk 0:01:03]} 28. Ne7+ {[%clk 0:02:14]} 1-0


[Site "https://www.chess.com"]